fUSD/lending_fUSD_20240419
["ID","MTS","AMOUNT","RATE_DAILY","PERIOD"]
[322931806,1713529357347,2320.74,0.00015342,2]
[322931807,1713529422607,199.4769859,0.00015422,2]
[322931808,1713529426886,62200.73,0.00015206,6]
[322931811,1713529460818,365086.45990257,0.00015322,2]
[322931812,1713529466471,1250.0,0.00015,2]
[322931813,1713529525336,7005.74142302,0.000155,2]
[322931814,1713529552507,502.51563229,0.00015419,2]
[322931815,1713529556429,502.51563229,0.00015497,2]
[322931816,1713529579924,168.85,0.0001463,2]
[322931817,1713529582309,1570.9652,0.0001537,2]
[322931819,1713529653599,187.13,0.000127,2]
[322931820,1713529653738,187.13,0.00014964,2]
[322931821,1713529666373,1000.0,0.000155,2]
[322931824,1713529735713,180.46668736,0.00015419,2]
[322931842,1713529792094,1500.0,0.00015283,2]
[322931843,1713529792156,823.9535093,0.00015421,2]
[322931844,1713529792299,1500.0,0.00015377,2]
[322931845,1713529792345,1500.0,0.0001549,2]
[322931848,1713529815777,152.71096071,0.00015399,2]
[322931866,1713529832068,-538.88,0.00015503,2]
[322931867,1713529832107,1000.0,0.000154,2]
[322931868,1713529832137,-3791.05192631,0.00015503,2]
[322931869,1713529832146,-241.23912374,0.00015504,2]
[322931870,1713529832158,-6550.4748,0.00015504,2]
[322931871,1713529832240,-4200.94278135,0.00015504,2]
[322931872,1713529832250,-9111.23617097,0.00015506,2]
[322931873,1713529832259,-800.0,0.00015507,2]
[322931874,1713529832269,-800.0,0.00015507,2]
[322931875,1713529832278,-142.28778898,0.00015509,2]
[322931876,1713529832290,-8.53221102,0.00015509,2]
[322931877,1713529832299,-672.38091936,0.00015509,2]
[322931879,1713529832308,-150.82,0.0001551,2]
[322931881,1713529832318,-1554.22,0.0001551,2]
[322931883,1713529832327,-1554.22,0.0001551,2]
[322931885,1713529832336,-1554.22,0.0001551,2]
[322931887,1713529832345,-161.00693236,0.00015512,2]
[322931889,1713529832355,-161.00693236,0.00015512,2]
[322931891,1713529832364,-161.00693236,0.00015512,2]
[322931893,1713529832374,-155.23346755,0.00015516,2]
[322931895,1713529832384,-437.0221954,0.00015517,2]
[322931897,1713529832393,-201.73040959,0.00015517,2]
[322931899,1713529832404,-1197.40959041,0.00015517,2]
[322931901,1713529832415,-500.0,0.00015517,2]
[322931903,1713529832426,-500.0,0.00015517,2]
[322931905,1713529832435,-500.0,0.00015517,2]
[322931907,1713529832445,-1615.15,0.00015517,2]
[322931909,1713529832454,-1107.09,0.00015517,2]
[322931911,1713529832463,-1531.39,0.00015517,2]
[322931913,1713529832473,-990.89,0.00015517,2]
[322931915,1713529832482,-500.0,0.00015517,2]
[322931917,1713529832491,-567.21,0.00015517,2]
[322931919,1713529832500,-1599.36,0.00015517,2]
[322931921,1713529832510,-2786.63034706,0.00015518,2]
[322931923,1713529832519,-5438.01,0.00015518,2]
[322931925,1713529832528,-702.8,0.00015518,2]
[322931927,1713529832538,-1317.74,0.00015518,2]
[322931929,1713529832547,-500.0,0.00015518,2]
[322931931,1713529832556,-94108.87,0.00015518,2]
[322931933,1713529832565,-9772.57,0.00015518,2]
[322931935,1713529832575,-6270.44,0.00015518,2]
[322931937,1713529832584,-13147.81,0.00015518,2]
[322931939,1713529832593,-8752.89,0.00015518,2]
[322931941,1713529832603,-3657.48,0.00015518,2]
[322931943,1713529832617,-10571.54,0.00015518,2]
[322931945,1713529832626,-5581.63,0.00015518,2]
[322931947,1713529832635,-2792.67,0.00015518,2]
[322931949,1713529832645,-9067.35,0.00015518,2]
[322931951,1713529832654,-6241.68,0.00015518,2]
[322931953,1713529832664,-3063.97,0.00015518,2]
[322931955,1713529832673,-2046.46,0.00015518,2]
[322931957,1713529832685,-3391.94,0.00015518,2]
[322931959,1713529832695,-9361.88,0.00015518,2]
[322931961,1713529832705,-4095.71,0.00015518,2]
[322931963,1713529832715,-7387.03,0.00015518,2]
[322931965,1713529832725,-4056.08,0.00015518,2]
[322931967,1713529832734,-2100.88,0.00015518,2]
[322931969,1713529832743,-5974.78065617,0.00015518,2]
[322931975,1713529832796,-778.63384695,0.00015518,2]
[322931979,1713529832826,-6799.9,0.00015518,2]
[322931981,1713529832839,-3319.94549688,0.00015518,2]
[322931983,1713529832848,-6254.84640997,0.00015518,2]
[322931985,1713529832858,-536.72,0.00015518,2]
[322931987,1713529832868,-3880.33,0.00015518,2]
[322931989,1713529832877,-500.0,0.00015518,2]
[322931992,1713529832887,-1626.14,0.00015518,2]
[322931994,1713529832897,-10581.84,0.00015518,2]
[322931996,1713529832907,-8029.12,0.00015518,2]
[322931998,1713529832916,-9909.83,0.00015518,2]
[322932000,1713529832929,-19669.31,0.00015518,2]
[322932001,1713529832942,-7693.0,0.00015518,2]
[322932003,1713529832952,-500.0,0.00015518,2]
[322932005,1713529832962,-4611.25,0.00015518,2]
[322932007,1713529832972,-4150.75,0.00015518,2]
[322932009,1713529832983,-9269.41,0.00015518,2]
[322932011,1713529832993,-13346.11,0.00015518,2]
[322932013,1713529833003,-4001.55,0.00015518,2]
[322932015,1713529833012,-5118.37,0.00015518,2]
[322932017,1713529833021,-10420.26,0.00015518,2]
[322932019,1713529833031,-7404.61,0.00015518,2]
[322932021,1713529833039,-500.0,0.00015518,2]
[322932023,1713529833049,-20164.92,0.00015518,2]
[322932025,1713529833059,-4973.08,0.00015518,2]
[322932027,1713529833068,-2625.94,0.00015518,2]
[322932029,1713529833077,-13182.39,0.00015518,2]
[322932031,1713529833086,-4981.23,0.00015518,2]
[322932033,1713529833096,-5148.21,0.00015518,2]
[322932035,1713529833105,-12081.26,0.00015518,2]
[322932037,1713529833114,-8339.15,0.00015518,2]
[322932039,1713529833123,-1049.36,0.00015518,2]
[322932041,1713529833132,-3773.77,0.00015518,2]
[322932043,1713529833142,-4966.32,0.00015518,2]
[322932045,1713529833151,-5958.84,0.00015518,2]
[322932047,1713529833160,-500.0,0.00015518,2]
[322932049,1713529833169,-20449.0,0.00015518,2]
[322932051,1713529833183,-22464.1,0.00015518,2]
[322932053,1713529833193,-500.0,0.00015518,2]
[322932055,1713529833202,-3349.16,0.00015518,2]
[322932057,1713529833211,-13307.01,0.00015518,2]
[322932059,1713529833220,-13572.81,0.00015518,2]
[322932061,1713529833230,-8587.1,0.00015518,2]
[322932063,1713529833239,-2455.9,0.00015518,2]
[322932066,1713529833249,-38253.19,0.00015518,2]
[322932067,1713529833258,-611.47,0.00015518,2]
[322932069,1713529833267,-685.84,0.00015519,2]
[322932072,1713529833278,-1620.45,0.00015519,2]
[322932074,1713529833287,-500.0,0.00015519,2]
[322932076,1713529833297,-4703.75,0.00015519,2]
[322932077,1713529833306,-3051.42,0.00015519,2]
[322932078,1713529833315,-500.0,0.00015519,2]
[322932079,1713529833324,-500.0,0.00015519,2]
[322932080,1713529833334,-3284.91,0.00015519,2]
[322932081,1713529833344,-500.0,0.00015519,2]
[322932082,1713529833353,-500.0,0.00015519,2]
[322932083,1713529833363,-4087.8,0.00015519,2]
[322932084,1713529833373,-500.0,0.00015519,2]
[322932085,1713529833383,-1721.36,0.00015519,2]
[322932086,1713529833394,-2045.32,0.00015519,2]
[322932087,1713529833403,-2182.49036184,0.00015519,2]
[322932088,1713529833413,-500.0,0.00015519,2]
[322932089,1713529833423,-500.0,0.00015519,2]
[322932090,1713529833440,-2057.25,0.00015519,2]
[322932091,1713529833450,-500.0,0.00015519,2]
[322932092,1713529833460,-2518.89,0.00015519,2]
[322932093,1713529833470,-5519.74,0.00015519,2]
[322932094,1713529833480,-500.0,0.00015519,2]
[322932095,1713529833491,-500.0,0.00015519,2]
[322932096,1713529833504,-500.0,0.00015519,2]
[322932097,1713529833514,-5479.51,0.00015519,2]
[322932098,1713529833524,-500.0,0.00015519,2]
[322932099,1713529833534,-1355.55,0.00015519,2]
[322932100,1713529833544,-500.0,0.00015519,2]
[322932101,1713529833555,-5033.1,0.00015519,2]
[322932102,1713529833565,-500.0,0.00015519,2]
[322932103,1713529833574,-500.0,0.00015519,2]
[322932104,1713529833585,-3230.13,0.00015519,2]
[322932105,1713529833595,-4798.75,0.00015519,2]
[322932106,1713529833604,-500.0,0.00015519,2]
[322932107,1713529833614,-850.86,0.00015519,2]
[322932108,1713529833625,-1656.28,0.00015519,2]
[322932109,1713529833634,-500.0,0.00015519,2]
[322932110,1713529833643,-5794.75,0.00015519,2]
[322932111,1713529833652,-500.0,0.00015519,2]
[322932112,1713529833663,-1928.62,0.00015519,2]
[322932113,1713529833672,-500.0,0.00015519,2]
[322932114,1713529833686,-3531.09,0.00015519,2]
[322932115,1713529833697,-500.0,0.00015519,2]
[322932116,1713529833707,-500.0,0.00015519,2]
[322932117,1713529833716,-821.69,0.00015519,2]
[322932118,1713529833725,-636.79,0.00015519,2]
[322932119,1713529833734,-500.0,0.00015519,2]
[322932120,1713529833744,-500.0,0.00015519,2]
[322932121,1713529833753,-500.0,0.00015519,2]
[322932122,1713529833763,-1107.52,0.00015519,2]
[322932123,1713529833772,-1473.45,0.00015519,2]
[322932124,1713529833781,-500.0,0.00015519,2]
[322932125,1713529833791,-1100.46,0.00015519,2]
[322932126,1713529833800,-500.0,0.00015519,2]
[322932127,1713529833809,-4475.51,0.00015519,2]
[322932128,1713529833818,-534.24541149,0.00015519,2]
[322932129,1713529833827,-931.49,0.00015519,2]
[322932130,1713529833837,-500.0,0.00015519,2]
[322932131,1713529833846,-500.0,0.00015519,2]
[322932132,1713529833855,-500.0,0.00015519,2]
[322932133,1713529833864,-500.0,0.00015519,2]
[322932134,1713529833873,-2911.46,0.00015519,2]
[322932135,1713529833882,-500.0,0.00015519,2]
[322932136,1713529833892,-1795.39,0.00015519,2]
[322932137,1713529833901,-500.0,0.00015519,2]
[322932138,1713529833910,-868.36,0.00015519,2]
[322932139,1713529833920,-500.0,0.00015519,2]
[322932140,1713529833932,-500.0,0.00015519,2]
[322932141,1713529833941,-500.0,0.00015519,2]
[322932142,1713529833950,-3705.09,0.00015519,2]
[322932143,1713529833959,-500.0,0.00015519,2]
[322932144,1713529833968,-500.0,0.00015519,2]
[322932145,1713529833977,-500.0,0.00015519,2]
[322932146,1713529833986,-1229.28,0.00015519,2]
[322932147,1713529833995,-500.0,0.00015519,2]
[322932148,1713529834005,-1739.72,0.00015519,2]
[322932149,1713529834015,-500.0,0.00015519,2]
[322932150,1713529834024,-858.8,0.00015519,2]
[322932151,1713529834033,-500.0,0.00015519,2]
[322932152,1713529834044,-1327.08,0.00015519,2]
[322932153,1713529834053,-500.0,0.00015519,2]
[322932154,1713529834063,-500.0,0.00015519,2]
[322932155,1713529834072,-500.0,0.00015519,2]
[322932156,1713529834083,-500.0,0.00015519,2]
[322932157,1713529834092,-1840.67,0.00015519,2]
[322932158,1713529834101,-1028.11,0.00015519,2]
[322932159,1713529834110,-500.0,0.00015519,2]
[322932160,1713529834120,-500.0,0.00015519,2]
[322932161,1713529834129,-3818.03,0.00015519,2]
[322932162,1713529834138,-500.0,0.00015519,2]
[322932163,1713529834147,-2632.38,0.00015519,2]
[322932164,1713529834156,-1523.63,0.00015519,2]
[322932165,1713529834166,-500.0,0.00015519,2]
[322932166,1713529834175,-500.0,0.00015519,2]
[322932167,1713529834190,-3140.27,0.00015519,2]
[322932168,1713529834201,-1258.48,0.00015519,2]
[322932169,1713529834211,-500.0,0.00015519,2]
[322932170,1713529834222,-500.0,0.00015519,2]
[322932171,1713529834234,-500.0,0.00015519,2]
[322932172,1713529834245,-1620.21,0.00015519,2]
[322932173,1713529834256,-500.0,0.00015519,2]
[322932174,1713529834268,-500.0,0.00015519,2]
[322932175,1713529834280,-500.0,0.00015519,2]
[322932176,1713529834290,-5955.48,0.00015519,2]
[322932177,1713529834304,-500.0,0.00015519,2]
[322932178,1713529834315,-777.93,0.00015519,2]
[322932179,1713529834326,-500.0,0.00015519,2]
[322932180,1713529834337,-500.0,0.00015519,2]
[322932181,1713529834348,-2274.95,0.00015519,2]
[322932182,1713529834360,-500.0,0.00015519,2]
[322932183,1713529834371,-3638.7,0.00015519,2]
[322932184,1713529834383,-500.0,0.00015519,2]
[322932185,1713529834396,-500.0,0.00015519,2]
[322932186,1713529834408,-500.0,0.00015519,2]
[322932187,1713529834420,-5014.08,0.00015519,2]
[322932188,1713529834443,-500.0,0.00015519,2]
[322932189,1713529834455,-500.0,0.00015519,2]
[322932190,1713529834467,-7019.88,0.00015519,2]
[322932191,1713529834479,-500.0,0.00015519,2]
[322932192,1713529834490,-5654.48,0.00015519,2]
[322932193,1713529834501,-3118.5,0.00015519,2]
[322932194,1713529834515,-500.0,0.00015519,2]
[322932195,1713529834526,-500.0,0.00015519,2]
[322932196,1713529834537,-500.0,0.00015519,2]
[322932197,1713529834548,-16677.33,0.00015519,2]
[322932198,1713529834561,-1015.95,0.00015519,2]
[322932199,1713529834572,-500.0,0.00015519,2]
[322932200,1713529834584,-25257.24,0.00015519,2]
[322932201,1713529834595,-500.0,0.00015519,2]
[322932202,1713529834606,-500.0,0.00015519,2]
[322932203,1713529834621,-500.0,0.00015519,2]
[322932204,1713529834631,-500.0,0.00015519,2]
[322932205,1713529834640,-500.0,0.00015519,2]
[322932206,1713529834650,-15134.1,0.00015519,2]
[322932207,1713529834662,-2094.36,0.00015519,2]
[322932208,1713529834672,-500.0,0.00015519,2]
[322932209,1713529834691,-9686.7,0.00015519,2]
[322932210,1713529834702,-500.0,0.00015519,2]
[322932211,1713529834713,-500.0,0.00015519,2]
[322932212,1713529834726,-7892.31,0.00015519,2]
[322932213,1713529834737,-4018.13,0.00015519,2]
[322932214,1713529834748,-500.0,0.00015519,2]
[322932215,1713529834760,-14439.4,0.00015519,2]
[322932216,1713529834771,-590.36,0.00015519,2]
[322932217,1713529834783,-500.0,0.00015519,2]
[322932218,1713529834794,-13368.18,0.00015519,2]
[322932219,1713529834805,-500.0,0.00015519,2]
[322932220,1713529835136,-42423.82,0.00015519,2]
[322932221,1713529835148,-4699.8,0.00015519,2]
[322932222,1713529835159,-500.0,0.00015519,2]
[322932223,1713529835170,-500.0,0.00015519,2]
[322932224,1713529835193,-7228.92,0.00015519,2]
[322932225,1713529835206,-530.4723933,0.00015519,2]
[322932226,1713529835217,-500.0,0.00015519,2]
[322932227,1713529835231,-500.0,0.00015519,2]
[322932228,1713529835243,-2013.51,0.00015519,2]
[322932229,1713529835253,-500.0,0.00015519,2]
[322932230,1713529835265,-115201.67,0.00015519,2]
[322932231,1713529835276,-2164.61,0.00015519,2]
[322932232,1713529835288,-624.82,0.00015519,2]
[322932233,1713529835300,-500.0,0.00015519,2]
[322932234,1713529835312,-5239.0,0.00015519,2]
[322932235,1713529835324,-500.0,0.00015519,2]
[322932236,1713529835339,-687.69,0.00015519,2]
[322932237,1713529835350,-500.0,0.00015519,2]
[322932238,1713529835362,-500.0,0.00015519,2]
[322932239,1713529835373,-1609.3,0.00015519,2]
[322932240,1713529835384,-500.0,0.00015519,2]
[322932241,1713529835394,-6439.36,0.00015519,2]
[322932242,1713529835405,-500.0,0.00015519,2]
[322932243,1713529835417,-7002.85,0.00015519,2]
[322932244,1713529835433,-500.0,0.00015519,2]
[322932245,1713529835444,-500.0,0.00015519,2]
[322932246,1713529835455,-500.0,0.00015519,2]
[322932247,1713529835467,-5947.28,0.00015519,2]
[322932248,1713529835478,-500.0,0.00015519,2]
[322932249,1713529835489,-1303.12,0.00015519,2]
[322932250,1713529835500,-2495.3,0.00015519,2]
[322932251,1713529835511,-1886.72,0.00015519,2]
[322932252,1713529835522,-500.0,0.00015519,2]
[322932253,1713529835533,-1771.64,0.00015519,2]
[322932254,1713529835544,-500.0,0.00015519,2]
[322932255,1713529835554,-10169.42,0.00015519,2]
[322932256,1713529835565,-500.0,0.00015519,2]
[322932257,1713529835577,-2494.37,0.00015519,2]
[322932258,1713529835589,-500.0,0.00015519,2]
[322932259,1713529835599,-500.0,0.00015519,2]
[322932260,1713529835612,-6000.77,0.00015519,2]
[322932261,1713529835622,-8051.88,0.00015519,2]
[322932262,1713529835634,-169.15414241,0.00015519,2]
[322932263,1713529835645,-500.0,0.00015519,2]
[322932264,1713529835657,-526.44,0.00015519,2]
[322932265,1713529835668,-4816.54,0.00015519,2]
[322932266,1713529835684,-15472.26,0.00015519,2]
[322932267,1713529835695,-500.0,0.00015519,2]
[322932268,1713529835704,-2941.07,0.00015519,2]
[322932269,1713529835714,-20615.3,0.00015519,2]
[322932270,1713529835723,-500.0,0.00015519,2]
[322932271,1713529835734,-6036.36,0.00015519,2]
[322932272,1713529835745,-500.0,0.00015519,2]
[322932273,1713529835755,-500.0,0.00015519,2]
[322932274,1713529835765,-5884.35,0.00015519,2]
[322932275,1713529835775,-500.0,0.00015519,2]
[322932276,1713529835786,-5175.99,0.00015519,2]
[322932277,1713529835796,-500.0,0.00015519,2]
[322932278,1713529835806,-500.0,0.00015519,2]
[322932279,1713529835816,-3130.84,0.00015519,2]
[322932280,1713529835827,-1744.99,0.00015519,2]
[322932281,1713529835838,-6696.07,0.00015519,2]
[322932282,1713529835848,-500.0,0.00015519,2]
[322932283,1713529835859,-2626.68,0.00015519,2]
[322932284,1713529835870,-1445.24,0.00015519,2]
[322932285,1713529835881,-500.0,0.00015519,2]
[322932286,1713529835891,-4174.75,0.00015519,2]
[322932287,1713529835903,-4702.81,0.00015519,2]
[322932288,1713529835913,-5026.41,0.00015519,2]
[322932289,1713529835923,-500.0,0.00015519,2]
[322932290,1713529835940,-3629.82,0.00015519,2]
[322932291,1713529835952,-500.0,0.00015519,2]
[322932292,1713529835962,-3030.43,0.00015519,2]
[322932293,1713529835973,-846.82,0.00015519,2]
[322932294,1713529835984,-9534.23,0.00015519,2]
[322932295,1713529835994,-2430.36,0.00015519,2]
[322932296,1713529836005,-501.02006405,0.00015519,2]
[322932297,1713529836016,-7524.72,0.00015519,2]
[322932298,1713529836026,-501.20242098,0.00015519,2]
[322932299,1713529836037,-500.0,0.00015519,2]
[322932300,1713529836048,-758.82,0.00015519,2]
[322932301,1713529836059,-501.06311932,0.00015519,2]
[322932302,1713529836070,-9151.91,0.00015519,2]
[322932303,1713529836081,-500.0,0.00015519,2]
[322932304,1713529836091,-14000.55,0.00015519,2]
[322932305,1713529836102,-2097.56,0.00015519,2]
[322932306,1713529836112,-1066.51,0.00015519,2]
[322932307,1713529836123,-5534.03,0.00015519,2]
[322932308,1713529836133,-500.52900031,0.00015519,2]
[322932309,1713529836144,-2750.4,0.00015519,2]
[322932310,1713529836154,-11668.19,0.00015519,2]
[322932311,1713529836165,-500.0,0.00015519,2]
[322932312,1713529836175,-500.0,0.00015519,2]
[322932313,1713529836194,-10519.77,0.00015519,2]
[322932314,1713529836204,-500.19440426,0.00015519,2]
[322932315,1713529836215,-14038.75921842,0.0001552,2]
[322932316,1713529836225,-182.92510726,0.0001552,2]
[322932317,1713529836234,-4313.37203052,0.0001552,2]
[322932318,1713529836244,-480.59289033,0.0001552,2]
[322932319,1713529836255,-405.69644502,0.0001552,2]
[322932320,1713529836264,-1549.01997213,0.0001552,2]
[322932321,1713529836274,-156.28866262,0.0001552,2]
[322932322,1713529836284,-162.13640766,0.0001552,2]
[322932323,1713529836294,-156.94408569,0.0001552,2]
[322932324,1713529836303,-157.17440551,0.0001552,2]
[322932325,1713529836313,-192.56367709,0.0001552,2]
[322932326,1713529836322,-155.37580433,0.0001552,2]
[322932327,1713529836332,-268.35852299,0.0001552,2]
[322932328,1713529836342,-155.28981591,0.0001552,2]
[322932329,1713529836351,-164.59322308,0.0001552,2]
[322932330,1713529836361,-201.52609927,0.0001552,2]
[322932331,1713529836371,-362.70496122,0.0001552,2]
[322932332,1713529836381,-156.5219401,0.0001552,2]
[322932333,1713529836392,-85713.43535033,0.0001552,2]
[322932334,1713529836402,-162.24557716,0.0001552,2]
[322932335,1713529836412,-209.90518545,0.0001552,2]
[322932336,1713529836423,-3207.01491362,0.0001552,2]
[322932337,1713529836437,-308.1970131,0.0001552,2]
[322932338,1713529836447,-310.35158592,0.0001552,2]
[322932339,1713529836457,-499.35551495,0.0001552,2]
[322932340,1713529836467,-20794.80835338,0.0001552,2]
[322932341,1713529836477,-491.56963288,0.0001552,2]
[322932342,1713529836487,-536.95974406,0.0001552,2]
[322932343,1713529836498,-1000.3158744,0.0001552,2]
[322932344,1713529836508,-455.1790143,0.0001552,2]
[322932345,1713529836518,-228.19119766,0.0001552,2]
[322932346,1713529836528,-155.38615794,0.0001552,2]
[322932347,1713529836538,-3769.90432037,0.0001552,2]
[322932348,1713529836548,-879.58,0.0001552,2]
[322932349,1713529836558,-2240.03,0.0001552,2]
[322932350,1713529836568,-766.28,0.0001552,2]
[322932351,1713529836578,-944.31,0.0001552,2]
[322932352,1713529836588,-540.55,0.0001552,2]
[322932353,1713529836597,-707.35,0.0001552,2]
[322932354,1713529836609,-2057.6,0.0001552,2]
[322932355,1713529836619,-3074.98,0.0001552,2]
[322932356,1713529836628,-922.84,0.0001552,2]
[322932357,1713529836637,-500.0,0.0001552,2]
[322932358,1713529836649,-629.61,0.0001552,2]
[322932359,1713529836659,-1088.93,0.0001552,2]
[322932360,1713529836668,-1455.2,0.0001552,2]
[322932361,1713529836682,-596.08,0.0001552,2]
[322932362,1713529836691,-679.84,0.0001552,2]
[322932363,1713529836701,-1434.85,0.0001552,2]
[322932364,1713529836710,-626.95,0.0001552,2]
[322932365,1713529836720,-917.99,0.0001552,2]
[322932366,1713529836731,-500.0,0.0001552,2]
[322932367,1713529836740,-1608.26,0.0001552,2]
[322932368,1713529836750,-522.55,0.0001552,2]
[322932369,1713529836760,-500.0,0.0001552,2]
[322932370,1713529836770,-1478.81,0.0001552,2]
[322932371,1713529836780,-1497.76,0.0001552,2]
[322932372,1713529836790,-500.0,0.0001552,2]
[322932373,1713529836800,-500.0,0.0001552,2]
[322932374,1713529836809,-1335.66,0.0001552,2]
[322932375,1713529836819,-500.0,0.0001552,2]
[322932376,1713529836829,-500.0,0.0001552,2]
[322932377,1713529836838,-622.64,0.0001552,2]
[322932378,1713529836849,-956.85,0.0001552,2]
[322932379,1713529836858,-2412.31,0.0001552,2]
[322932380,1713529836868,-500.0,0.0001552,2]
[322932381,1713529836878,-500.0,0.0001552,2]
[322932382,1713529836887,-500.0,0.0001552,2]
[322932383,1713529836896,-1413.35,0.0001552,2]
[322932384,1713529836906,-1555.0,0.0001552,2]
[322932385,1713529836916,-1462.47,0.0001552,2]
[322932386,1713529836925,-1028.55,0.0001552,2]
[322932387,1713529836937,-500.0,0.0001552,2]
[322932388,1713529836946,-761.3,0.0001552,2]
[322932389,1713529836956,-602.15,0.0001552,2]
[322932390,1713529836966,-1018.58,0.0001552,2]
[322932391,1713529836975,-3084.67,0.0001552,2]
[322932392,1713529836986,-1622.28,0.0001552,2]
[322932393,1713529836995,-407.86060982,0.0001552,2]
[322932394,1713529837005,-575.08,0.0001552,2]
[322932395,1713529837015,-500.0,0.0001552,2]
[322932396,1713529837025,-704.38,0.0001552,2]
[322932397,1713529837036,-745.95,0.0001552,2]
[322932398,1713529837046,-1590.23,0.0001552,2]
[322932399,1713529837055,-1905.49,0.0001552,2]
[322932400,1713529837065,-514.38,0.0001552,2]
[322932401,1713529837075,-589.5,0.0001552,2]
[322932402,1713529837084,-500.0,0.0001552,2]
[322932403,1713529837094,-625.46,0.0001552,2]
[322932404,1713529837104,-613.09,0.0001552,2]
[322932405,1713529837113,-500.0,0.0001552,2]
[322932406,1713529837123,-2922.84,0.0001552,2]
[322932407,1713529837132,-2707.7,0.0001552,2]
[322932408,1713529837142,-1035.87,0.0001552,2]
[322932409,1713529837151,-534.49742107,0.0001552,2]
[322932410,1713529837160,-500.0,0.0001552,2]
[322932411,1713529837170,-500.0,0.0001552,2]
[322932412,1713529837179,-1165.82,0.0001552,2]
[322932413,1713529837193,-500.0,0.0001552,2]
[322932414,1713529837203,-2289.23,0.0001552,2]
[322932415,1713529837212,-500.0,0.0001552,2]
[322932416,1713529837222,-2054.78,0.0001552,2]
[322932417,1713529837232,-2173.27,0.0001552,2]
[322932418,1713529837241,-3105.8,0.0001552,2]
[322932419,1713529837252,-500.0,0.0001552,2]
[322932420,1713529837261,-872.17,0.0001552,2]
[322932421,1713529837271,-1063.84,0.0001552,2]
[322932422,1713529837280,-2084.45,0.0001552,2]
[322932423,1713529837290,-1373.43,0.0001552,2]
[322932424,1713529837299,-1231.39,0.0001552,2]
[322932425,1713529837309,-811.86,0.0001552,2]
[322932426,1713529837318,-500.0,0.0001552,2]
[322932427,1713529837328,-500.0,0.0001552,2]
[322932428,1713529837337,-2580.41,0.0001552,2]
[322932429,1713529837346,-1132.12,0.0001552,2]
[322932430,1713529837356,-1448.67,0.0001552,2]
[322932431,1713529837365,-2036.57,0.0001552,2]
[322932432,1713529837375,-1317.93,0.0001552,2]
[322932433,1713529837384,-15462.9551698,0.0001552,2]
[322932434,1713529837394,-922.03,0.0001552,2]
[322932435,1713529837403,-60008.88025,0.0001552,2]
[322932436,1713529837413,-500.0,0.0001552,2]
[322932437,1713529837423,-781.87,0.0001552,2]
[322932438,1713529837434,-503.01,0.0001552,2]
[322932439,1713529837443,-934.97,0.0001552,2]
[322932440,1713529837452,-1509.39,0.0001552,2]
[322932441,1713529837462,-6092.5474932,0.0001552,2]
[322932442,1713529837471,-4120.6011906,0.0001552,2]
[322932443,1713529837481,-1000.0,0.00015521,2]
[322932444,1713529837490,-1000.0,0.00015521,2]
[322932445,1713529837500,-1000.0,0.00015521,2]
[322932446,1713529837510,-1000.0,0.00015521,2]
[322932447,1713529837519,-1000.0,0.00015521,2]
[322932448,1713529837528,-1000.0,0.00015521,2]
[322932449,1713529837538,-1000.0,0.00015521,2]